bitfinex/quotes_BTCUSD_20221001
["timestamp","ask_amount","ask_price","bid_price","bid_amount"]
[1664644219739,2.44103147,19308.0,19307.0,1.73421401]
[1664644219916,2.46844431,19308.0,19307.0,1.73421401]
[1664644220393,2.5090316,19308.0,19307.0,1.73421401]
[1664644220613,2.09379454,19308.0,19307.0,1.7341329]
[1664644220765,1.96607524,19308.0,19307.0,1.7341329]
[1664644220974,2.68197937,19308.0,19307.0,1.7341329]
[1664644221595,2.72257715,19308.0,19307.0,1.7341329]
[1664644221819,2.80158415,19308.0,19307.0,1.7341329]
[1664644222042,2.34580783,19308.0,19307.0,1.7341329]
[1664644222497,2.39580783,19308.0,19307.0,1.7341329]
[1664644222739,2.43640517,19308.0,19307.0,1.7341329]
[1664644222959,2.35740517,19308.0,19307.0,1.7341329]
[1664644223420,2.68202515,19308.0,19307.0,1.7341329]
[1664644223662,2.31680515,19308.0,19307.0,1.7341329]
[1664644223898,2.39580512,19308.0,19307.0,1.7341329]
[1664644224186,2.76102021,19308.0,19307.0,1.7341329]
[1664644224362,2.76101936,19308.0,19307.0,1.7341329]
[1664644224598,2.39572196,19308.0,19307.0,1.7341329]
[1664644224980,2.31672196,19308.0,19307.0,1.7341329]
[1664644225196,2.20591874,19308.0,19307.0,1.7341329]
[1664644225437,2.26680512,19308.0,19307.0,1.7341329]
[1664644225827,2.30522333,19308.0,19307.0,1.7341329]
[1664644226038,2.3458067,19308.0,19307.0,1.7341329]
[1664644226507,2.80158168,19308.0,19307.0,1.7341329]
[1664644226745,2.35522333,19308.0,19307.0,1.7341329]
[1664644226960,2.80161298,19308.0,19307.0,1.7341329]
[1664644227170,2.43640517,19308.0,19307.0,1.7341329]
[1664644227604,2.27622333,19308.0,19307.0,1.7341329]
[1664644227876,2.39580489,19308.0,19307.0,1.7341329]
[1664644228530,2.43640517,19308.0,19307.0,1.7341329]
[1664644228767,2.34580495,19308.0,19307.0,1.7341329]
[1664644228991,0.83174752,19308.0,19307.0,1.7341329]
[1664644229209,0.75274752,19308.0,19307.0,1.7341329]
[1664644229432,1.11059652,19308.0,19307.0,1.7341329]
[1664644229681,1.15117814,19308.0,19307.0,1.7341329]
[1664644229898,1.19317814,19308.0,19307.0,1.7341329]
[1664644230325,1.72007498,19308.0,19307.0,1.7341329]
[1664644230569,1.78096136,19308.0,19307.0,1.7341329]
[1664644231101,1.73896136,19308.0,19307.0,1.7341329]
[1664644231767,1.78096136,19308.0,19307.0,1.7341329]
[1664644232201,1.72007498,19308.0,19307.0,1.7341329]
[1664644232992,1.78096136,19308.0,19307.0,1.7341329]
[1664644233219,1.73896136,19308.0,19307.0,1.7341329]
[1664644233940,3.10773764,19308.0,19307.0,1.28966432]
[1664644234158,2.61867518,19308.0,19307.0,1.28966432]
[1664644235070,2.53967518,19308.0,19307.0,1.28966432]
[1664644235303,3.44126879,19308.0,19307.0,1.28966432]
[1664644236007,3.52026879,19308.0,19307.0,1.28966432]
[1664644237193,3.44126879,19308.0,19307.0,1.28966432]
[1664644237433,3.81411853,19308.0,19307.0,1.28966432]
[1664644237866,3.99458229,19308.0,19307.0,1.28966432]
[1664644238303,3.89311853,19308.0,19307.0,1.28966432]
[1664644238526,3.99458223,19308.0,19307.0,1.28966432]
[1664644238767,3.89311853,19308.0,19307.0,1.28966432]
[1664644238997,4.07574974,19308.0,19307.0,1.28966432]
[1664644239280,3.99674974,19308.0,19307.0,1.28966432]
[1664644239978,4.07574974,19308.0,19307.0,1.28966432]
[1664644240200,4.02574974,19308.0,19307.0,1.28966432]
[1664644240442,3.8368641,19308.0,19307.0,1.28966432]
[1664644240651,4.05831562,19308.0,19307.0,1.28966432]
[1664644241091,3.8981474,19308.0,19307.0,1.28966432]
[1664644241436,3.51447379,19308.0,19307.0,1.28966432]
[1664644241645,3.8981474,19308.0,19307.0,1.28966432]
[1664644241873,3.9771474,19308.0,19307.0,1.28966432]
[1664644242082,3.59347379,19308.0,19307.0,1.28966432]
[1664644242284,3.67464819,19308.0,19307.0,1.28966432]
[1664644242504,3.59347379,19308.0,19307.0,1.28966432]
[1664644242740,3.67464791,19308.0,19307.0,1.28966432]
[1664644243166,3.59564791,19308.0,19307.0,1.28966432]
[1664644243408,3.51447379,19308.0,19307.0,1.28966432]
[1664644243906,3.59347379,19308.0,19307.0,1.28966432]
[1664644245124,3.51447379,19308.0,19307.0,1.28966432]
[1664644245672,3.4130108,19308.0,19307.0,1.28966432]
[1664644245882,3.4920108,19308.0,19307.0,1.28966432]
[1664644247138,3.4130108,19308.0,19307.0,1.28966432]
[1664644247365,3.79668441,19308.0,19307.0,1.28966432]
[1664644247815,3.87568441,19308.0,19307.0,1.28966432]
[1664644249004,3.74668441,19308.0,19307.0,1.28966432]
[1664644249223,3.43883541,19308.0,19307.0,1.28966432]
[1664644249446,3.79668441,19308.0,19307.0,1.28966432]
[1664644249890,3.87468441,19308.0,19307.0,1.28966432]
[1664644250610,4.02706975,19308.0,19307.0,1.28966432]
[1664644251051,3.79668441,19308.0,19307.0,1.28966432]
[1664644251500,4.04690979,19308.0,19307.0,1.28966432]
[1664644251728,4.0984102,19308.0,19307.0,1.28966432]
[1664644251952,3.92718482,19308.0,19307.0,1.28966432]
[1664644252627,3.4420108,19308.0,19307.0,1.28966432]
[1664644253076,3.3630108,19308.0,19307.0,1.28966432]
[1664644253944,3.4420108,19308.0,19307.0,1.28966432]
[1664644255290,3.3630108,19308.0,19307.0,1.28966432]
[1664644256024,3.4420108,19308.0,19307.0,1.28966432]
[1664644256244,3.4920108,19308.0,19307.0,1.28966432]
[1664644257144,3.64439614,19308.0,19307.0,1.28966432]
[1664644257363,3.51539614,19308.0,19307.0,1.28966432]
[1664644257602,3.3630108,19308.0,19307.0,1.28966432]
[1664644258038,3.4420108,19308.0,19307.0,1.28966432]
[1664644258473,3.4420108,19308.0,19307.0,1.28650897]
[1664644259260,3.4130108,19308.0,19307.0,1.28650897]
[1664644259481,3.51539614,19308.0,19307.0,1.28650897]
[1664644259697,4.52837316,19308.0,19307.0,1.28650897]
[1664644259927,4.60737316,19308.0,19307.0,1.28650897]
[1664644260400,4.8097585,19308.0,19307.0,1.28650897]
[1664644261269,4.7307585,19308.0,19307.0,1.28650897]
[1664644262014,4.7917585,19308.0,19307.0,1.28650897]
[1664644262682,4.58937316,19308.0,19307.0,1.28650897]
[1664644262916,4.7417585,19308.0,19307.0,1.28650897]
[1664644263135,4.6807585,19308.0,19307.0,1.28650897]
[1664644263362,4.7307585,19308.0,19307.0,1.28650897]
[1664644264017,4.7917585,19308.0,19307.0,1.28650897]
[1664644265132,4.7307585,19308.0,19307.0,0.84205272]
[1664644265346,4.75033064,19308.0,19307.0,0.84205272]
[1664644265829,4.73070662,19308.0,19307.0,0.84205272]
[1664644267353,4.90208251,19308.0,19307.0,0.84205272]
[1664644268109,4.74974905,19308.0,19307.0,0.84205272]
[1664644272905,0.2590343,19306.0,19300.0,1.7015]
[1664644273111,0.10155213,19303.0,19300.0,1.3045]
[1664644273330,1.1,19301.0,19300.0,0.129612]
[1664644273549,1.1,19301.0,19297.0,0.80740545]
[1664644273550,0.50483933,19301.0,19297.0,0.80740545]
[1664644273783,0.50483933,19300.0,19297.0,0.20410545]
[1664644273990,0.50483933,19300.0,19298.0,0.362849]
[1664644274280,0.429536,19300.0,19298.0,0.492475]
[1664644274428,0.429536,19300.0,19299.0,0.357849]
[1664644274654,0.429536,19300.0,19298.0,0.492475]
[1664644275299,0.429536,19300.0,19299.0,0.357849]
[1664644275538,0.429536,19300.0,19298.0,0.134626]
[1664644275746,0.429536,19300.0,19299.0,0.357849]
[1664644276044,0.429536,19300.0,19299.0,0.362849]
[1664644276269,0.429536,19300.0,19299.0,0.005]
[1664644276495,0.388603,19300.0,19299.0,0.005]
[1664644276670,0.688603,19300.0,19299.0,0.005]
[1664644277181,0.388603,19300.0,19299.0,0.005]
[1664644277351,0.388603,19300.0,19299.0,0.362849]
[1664644278030,0.467603,19300.0,19299.0,0.362849]
[1664644278263,1.285737,19300.0,19299.0,0.362849]
[1664644278973,1.285737,19300.0,19299.0,0.005]
[1664644279184,1.85666954,19300.0,19299.0,0.005]
[1664644279440,1.77766954,19300.0,19299.0,0.005]
[1664644280129,1.85666954,19300.0,19299.0,0.005]
[1664644280357,1.4790672,19300.0,19299.0,0.005]
[1664644280601,1.99079864,19300.0,19299.0,0.005]
[1664644281361,2.28940098,19300.0,19299.0,0.005]
[1664644281562,1.91179864,19300.0,19299.0,0.005]
[1664644282156,1.99079864,19300.0,19299.0,0.005]
[1664644282988,1.79746844,19300.0,19299.0,0.005]
[1664644283438,1.71846844,19300.0,19299.0,0.005]
[1664644283661,1.41846844,19300.0,19299.0,0.005]
[1664644283886,0.90033444,19300.0,19299.0,0.005]
[1664644284235,0.97933444,19300.0,19299.0,0.005]
[1664644285431,0.90033444,19300.0,19299.0,0.005]
[1664644286109,0.388603,19300.0,19299.0,0.06001]
[1664644286329,0.388603,19300.0,19299.0,0.61649271]
[1664644286330,0.079,19300.0,19299.0,0.61649271]
[1664644286566,0.079,19300.0,19299.0,0.42082818]
[1664644286789,0.079,19300.0,19299.0,0.33325371]
[1664644287515,0.3,19302.0,19299.0,0.20363371]
[1664644287714,0.2296713,19303.0,19299.0,0.20363371]
[1664644287715,0.51173144,19301.0,19299.0,0.20363371]
[1664644288392,0.51173144,19301.0,19299.0,0.25327426]
[1664644288564,0.51173144,19301.0,19299.0,0.20363371]
[1664644288864,0.51173144,19301.0,19299.0,0.25327426]
[1664644289087,0.3,19300.0,19299.0,0.20363371]
[1664644289848,0.51173144,19301.0,19299.0,0.25327426]
[1664644290289,0.079,19300.0,19299.0,0.25327426]
[1664644290506,0.079,19300.0,19299.0,0.61112326]
[1664644290728,0.379,19300.0,19299.0,0.61112326]
[1664644290888,0.379,19300.0,19299.0,0.25327426]
[1664644291333,0.3,19300.0,19299.0,0.25327426]
[1664644292157,0.379,19300.0,19299.0,0.25327426]
[1664644292903,0.379,19300.0,19299.0,0.20363371]
[1664644293141,0.079,19300.0,19299.0,0.56148271]
[1664644293376,0.51173144,19301.0,19299.0,0.56148271]
[1664644293598,0.51173144,19301.0,19299.0,0.20363371]
[1664644293835,0.51173144,19302.0,19300.0,0.357849]
[1664644294064,0.51173144,19303.0,19301.0,0.14964055]
[1664644294291,0.51173144,19303.0,19302.0,0.357849]
[1664644294541,0.51173144,19303.0,19301.0,0.14964055]
[1664644294991,0.51173144,19303.0,19302.0,0.357849]
[1664644295461,0.81173144,19303.0,19301.0,0.14964055]
[1664644295687,0.81173144,19303.0,19302.0,0.357849]
[1664644295911,0.81173144,19303.0,19301.0,0.14964055]
[1664644296113,0.81173144,19303.0,19302.0,0.357849]
[1664644296332,0.89073144,19303.0,19302.0,0.357849]
[1664644296571,0.59073144,19303.0,19302.0,0.357849]
[1664644297489,0.51173144,19303.0,19302.0,0.3577483]
[1664644297958,0.51173144,19303.0,19301.0,0.39112952]
[1664644298155,0.59073144,19303.0,19302.0,0.35786]
[1664644299147,0.59073144,19303.0,19301.0,0.39112952]
[1664644299374,0.59073144,19303.0,19302.0,0.35786]
[1664644299590,0.51173144,19303.0,19302.0,0.35786]
[1664644300367,0.079,19303.0,19301.0,0.52073752]
[1664644300570,0.079,19303.0,19302.0,0.50750055]
[1664644301377,0.51173144,19305.0,19302.0,0.50750055]
[1664644301587,0.51173144,19305.0,19302.0,0.14964055]
[1664644302219,0.59073144,19305.0,19302.0,0.14964055]
[1664644302403,0.59073144,19305.0,19302.0,0.2017143]
[1664644302888,1.17317311,19305.0,19302.0,0.14964055]
[1664644303046,0.31756,19303.0,19302.0,0.05]
[1664644303258,0.31756,19303.0,19301.0,0.29112952]
[1664644303259,0.3,19303.0,19301.0,0.29112952]
[1664644303456,0.3,19304.0,19301.0,0.29112952]
[1664644303457,0.3,19304.0,19301.0,0.24148897]
[1664644304209,0.379,19304.0,19301.0,0.24148897]
[1664644305087,0.35786,19303.0,19301.0,0.24148897]
[1664644305302,0.31756,19302.0,19301.0,0.29112952]
[1664644305519,0.3,19304.0,19301.0,0.64898952]
[1664644305738,0.3,19304.0,19301.0,0.29112952]
[1664644306233,0.379,19304.0,19301.0,0.29112952]
[1664644307345,0.3,19304.0,19301.0,0.29112952]
[1664644307568,0.35786,19303.0,19301.0,0.29112952]
[1664644307796,0.3,19304.0,19301.0,0.29112952]
[1664644308323,0.079,19303.0,19301.0,0.24148897]
[1664644308545,0.079,19303.0,19301.0,0.29112952]
[1664644309230,0.079,19303.0,19302.0,0.35786]
[1664644309445,0.67760234,19304.0,19301.0,0.29112952]
[1664644309667,0.3,19304.0,19301.0,0.29112952]
[1664644310150,0.379,19304.0,19302.0,0.35786]
[1664644310383,0.379,19304.0,19301.0,0.24148897]
[1664644310606,0.379,19304.0,19302.0,0.35786]
[1664644310838,0.379,19304.0,19301.0,0.24148897]
[1664644311063,0.379,19304.0,19303.0,0.05]
[1664644311279,0.379,19304.0,19301.0,0.24148897]
[1664644311494,0.3,19304.0,19301.0,0.24148897]
[1664644311724,0.3,19304.0,19302.0,0.35786]
[1664644311984,0.67760234,19304.0,19301.0,0.24148897]
[1664644312214,0.379,19304.0,19302.0,0.35786]
[1664644312446,0.75660234,19304.0,19301.0,0.24148897]
[1664644312675,0.379,19304.0,19301.0,0.24148897]
[1664644313173,0.379,19304.0,19302.0,0.35786]
[1664644313439,0.67760234,19304.0,19302.0,0.35786]
[1664644313717,0.3,19304.0,19302.0,0.35786]
[1664644313927,0.67760234,19304.0,19303.0,0.05]
[1664644314155,0.3,19304.0,19301.0,0.24148897]
[1664644314380,0.35786,19303.0,19301.0,0.24148897]
[1664644314595,0.3,19302.0,19301.0,0.24148897]
[1664644314817,0.3,19302.0,19301.0,0.59934897]
[1664644315037,0.3,19303.0,19301.0,0.24148897]
[1664644315185,0.3,19303.0,19302.0,0.35786]
[1664644315403,0.3,19303.0,19301.0,0.29112952]
[1664644315927,0.4228889,19303.0,19301.0,0.24148897]
[1664644316138,0.80049124,19303.0,19301.0,0.24148897]
[1664644316319,0.87949124,19303.0,19301.0,0.24148897]
[1664644317493,0.80049124,19303.0,19301.0,0.24148897]
[1664644317713,0.92991624,19303.0,19302.0,0.05]
[1664644317933,0.92991624,19303.0,19301.0,0.42073552]
[1664644318158,1.4589209,19303.0,19301.0,0.42073552]
[1664644318404,1.5379209,19303.0,19301.0,0.42073552]
[1664644318866,1.91552324,19303.0,19301.0,0.42073552]
[1664644319075,1.5379209,19303.0,19301.0,0.42073552]
[1664644320070,1.83652324,19303.0,19301.0,0.42073552]
[1664644320295,1.53783536,19303.0,19301.0,0.42073552]
[1664644321551,1.45883536,19303.0,19301.0,0.42073552]
[1664644322379,1.51383536,19303.0,19301.0,0.42373552]
[1664644322592,1.09094646,19303.0,19301.0,0.42373552]
[1664644322801,1.09094646,19303.0,19302.0,0.35786]
[1664644323517,1.09094646,19303.0,19301.0,0.42373552]
[1664644323746,1.03594846,19303.0,19302.0,0.35786]
[1664644323971,0.42933946,19303.0,19301.0,0.42073552]
[1664644324193,1.33594846,19303.0,19301.0,0.42073552]
[1664644324423,1.41494846,19303.0,19301.0,0.42073552]
[1664644324651,0.65786,19302.0,19301.0,0.42073552]
[1664644324869,0.3,19302.0,19301.0,0.37109497]
[1664644325108,0.3,19302.0,19301.0,0.72895497]
[1664644325325,0.3,19302.0,19301.0,0.24148897]
[1664644325551,0.3,19302.0,19301.0,0.59934897]
[1664644325552,0.68856,19302.0,19301.0,0.59934897]
[1664644325774,0.38856,19302.0,19301.0,0.59934897]
[1664644326469,0.46756,19302.0,19301.0,0.59934897]
[1664644327160,0.76756,19302.0,19301.0,0.59934897]
[1664644327361,0.46756,19302.0,19301.0,0.24148897]
[1664644327581,0.68856,19302.0,19301.0,0.59934897]
[1664644327793,0.38856,19302.0,19301.0,0.24148897]
[1664644328055,0.38856,19302.0,19301.0,0.59934897]
[1664644328494,0.46756,19302.0,19301.0,0.59934897]
[1664644328694,0.76756,19302.0,19301.0,0.24148897]
[1664644328943,0.90905665,19302.0,19301.0,0.24148897]
[1664644329660,0.83005665,19302.0,19301.0,0.24148897]
[1664644329874,0.83005665,19302.0,19301.0,0.59934897]
[1664644330097,0.83005665,19302.0,19301.0,0.24148897]
[1664644330098,0.68856,19302.0,19301.0,0.24148897]
[1664644330327,0.68856,19302.0,19301.0,0.59934897]
[1664644330564,0.76756,19302.0,19301.0,0.59934897]
[1664644331317,0.76756,19302.0,19301.0,0.24148897]
[1664644331546,1.285641,19302.0,19301.0,0.59934897]
[1664644331744,1.206641,19302.0,19301.0,0.59934897]
[1664644332178,0.68856,19302.0,19301.0,0.59934897]
[1664644332418,0.74356,19302.0,19301.0,0.60234897]
[1664644332630,0.74356,19302.0,19301.0,0.24448897]
[1664644333092,2.34187883,19302.0,19301.0,0.003]
[1664644333327,2.69973883,19302.0,19301.0,0.003]
[1664644333544,2.34187883,19302.0,19301.0,0.003]
[1664644333767,1.90927649,19302.0,19300.0,0.129615]
[1664644333996,0.3,19301.0,19299.0,0.229619]
[1664644334224,1.206699,19301.0,19300.0,0.35786]
[1664644335390,1.206699,19301.0,19299.0,0.229619]
[1664644335613,1.206699,19301.0,19300.0,0.35786]
[1664644336530,1.285699,19301.0,19300.0,0.35786]
[1664644337865,1.206699,19301.0,19300.0,0.35786]
[1664644338633,1.285699,19301.0,19300.0,0.35786]
[1664644339119,1.285699,19301.0,19299.0,0.35924]
[1664644339349,1.285699,19301.0,19300.0,0.35786]
[1664644339793,1.206699,19301.0,19300.0,0.35786]
[1664644339993,1.206699,19301.0,19299.0,0.35924]
[1664644340196,1.206699,19301.0,19300.0,0.35786]
[1664644340433,0.985699,19301.0,19300.0,0.35786]
[1664644340998,1.285699,19301.0,19300.0,0.35786]
[1664644341883,1.206699,19301.0,19300.0,0.35786]
[1664644342324,1.206699,19301.0,19299.0,0.35924]
[1664644342325,1.285699,19301.0,19299.0,0.35924]
[1664644342585,1.285699,19301.0,19300.0,0.35786]
[1664644342795,0.985699,19301.0,19300.0,0.35786]
[1664644343669,0.906699,19301.0,19300.0,0.35786]
[1664644344170,0.388585,19301.0,19300.0,0.35786]
[1664644344352,1.20031644,19301.0,19300.0,0.35777241]
[1664644344583,2.68531917,19301.0,19299.0,0.129619]
[1664644344944,0.81173144,19300.0,19298.0,0.129628]
[1664644345172,1.06478502,19300.0,19298.0,0.129628]
[1664644345406,0.81173144,19300.0,19299.0,0.362882]
[1664644345623,1.71847744,19300.0,19299.0,0.362882]
[1664644346072,1.71847744,19300.0,19299.0,0.005]
[1664644346584,1.73847744,19300.0,19299.0,0.362882]
[1664644347274,1.73847744,19300.0,19299.0,0.005]
[1664644347502,1.97708018,19300.0,19299.0,0.005]
[1664644347724,1.95708018,19300.0,19299.0,0.005]
[1664644348409,1.97708018,19300.0,19299.0,0.005]
[1664644349649,1.95708018,19300.0,19299.0,0.005]
[1664644350399,1.97708018,19300.0,19299.0,0.005]
[1664644351650,1.95708018,19300.0,19299.0,0.005]
[1664644352564,1.97708018,19300.0,19299.0,0.005]
[1664644353785,1.95708018,19300.0,19299.0,0.005]
[1664644354526,1.97708018,19300.0,19299.0,0.005]
[1664644354897,1.73847744,19300.0,19299.0,0.005]
[1664644355124,1.43847744,19300.0,19299.0,0.362882]
[1664644355544,1.73847744,19300.0,19299.0,0.362882]
[1664644355850,1.71847744,19300.0,19299.0,0.362882]
[1664644356066,0.43856499,19303.0,19299.0,0.30504889]
[1664644356296,0.51173144,19302.0,19300.0,0.38838689]
[1664644356523,0.90029744,19302.0,19301.0,0.357882]
[1664644356696,0.90029744,19302.0,19300.0,0.28973089]
[1664644356697,0.64125544,19302.0,19300.0,0.33937144]
[1664644357105,0.64125544,19302.0,19301.0,0.357882]
[1664644357339,0.51173144,19302.0,19301.0,0.42455686]
[1664644357569,0.04062085,19304.0,19301.0,0.42455686]
[1664644357865,0.94088229,19304.0,19301.0,0.32588686]
[1664644358091,0.94088229,19304.0,19301.0,0.259212]
[1664644358527,1.01988229,19304.0,19301.0,0.259212]
[1664644358857,1.01988229,19304.0,19301.0,0.48067467]
[1664644359075,0.3,19303.0,19301.0,0.48067467]
[1664644359296,0.357882,19302.0,19301.0,0.48067467]
[1664644359543,0.429515,19303.0,19301.0,0.70895067]
[1664644359700,0.429515,19303.0,19301.0,0.48067667]
[1664644360637,0.508515,19303.0,19301.0,0.48067667]
[1664644361074,0.508515,19303.0,19301.0,0.35106867]
[1664644361075,0.357882,19302.0,19301.0,0.35106867]
[1664644361326,0.3,19302.0,19301.0,0.35106867]
[1664644361549,0.467542,19303.0,19301.0,0.35106867]
[1664644361805,0.388542,19303.0,19301.0,0.48067667]
[1664644362577,0.3,19302.0,19301.0,0.48067667]
[1664644362799,0.3,19302.0,19301.0,0.70895067]
[1664644363772,0.3,19302.0,19301.0,0.35106867]
[1664644364763,0.379,19302.0,19301.0,0.22146267]
[1664644364998,0.379,19302.0,19301.0,1.00501518]
[1664644364999,0.079,19302.0,19301.0,1.00501518]
[1664644365515,0.079,19302.0,19301.0,1.39359418]
[1664644365756,0.23583543,19305.0,19301.0,1.39359418]
[1664644365980,0.49003613,19306.0,19304.0,0.14964055]
[1664644366202,1.00176757,19306.0,19302.0,0.47760234]
[1664644366421,1.00176757,19306.0,19302.0,0.1]
[1664644366642,1.31225031,19306.0,19302.0,0.1]
[1664644367136,0.45943413,19305.0,19304.0,0.129586]
[1664644367386,0.45943413,19305.0,19303.0,0.12959]
[1664644367595,0.3,19304.0,19303.0,0.12959]
[1664644368701,0.079,19304.0,19303.0,0.12959]
[1664644369769,0.08081229,19304.0,19302.0,0.229595]
[1664644370223,0.129508,19304.0,19302.0,0.229595]
[1664644370660,0.208508,19304.0,19302.0,0.229595]
[1664644370895,0.508508,19304.0,19302.0,0.229595]
[1664644371708,0.508508,19304.0,19302.0,0.359197]
[1664644371934,0.72914185,19304.0,19302.0,0.259197]
[1664644372175,0.89289182,19304.0,19302.0,0.129595]
[1664644372891,0.97189182,19304.0,19302.0,0.129595]
[1664644373102,0.357882,19303.0,19302.0,0.129595]
[1664644373501,0.3,19303.0,19302.0,0.129595]
[1664644374284,0.388521,19304.0,19302.0,0.129595]
[1664644374732,0.079,19303.0,19302.0,0.129595]
[1664644374955,0.079,19303.0,19302.0,0.487477]
[1664644375658,0.079,19303.0,19302.0,0.129595]
[1664644376120,0.079,19303.0,19302.0,0.487477]
[1664644376552,0.158,19303.0,19302.0,0.487477]
[1664644376770,0.158,19303.0,19302.0,0.129595]
[1664644377333,0.515882,19303.0,19302.0,0.129595]
[1664644377558,0.158,19303.0,19302.0,0.129595]
[1664644378032,0.388521,19304.0,19302.0,0.487477]
[1664644378249,0.388521,19304.0,19302.0,0.129595]
[1664644378685,0.467521,19304.0,19302.0,0.129595]
[1664644379802,0.388521,19304.0,19302.0,0.129595]
[1664644380710,0.467521,19304.0,19302.0,0.129595]
[1664644381221,0.467521,19304.0,19303.0,0.357882]
[1664644381443,0.767521,19304.0,19302.0,0.129595]
[1664644382098,0.688521,19304.0,19302.0,0.129595]
[1664644382773,0.767521,19304.0,19303.0,0.357882]
[1664644382992,0.467521,19304.0,19302.0,0.259196]
[1664644384009,1.22846236,19304.0,19302.0,0.129595]
[1664644384239,0.657882,19303.0,19302.0,0.129595]
[1664644384457,0.3,19303.0,19302.0,0.129595]
[1664644384958,0.3,19303.0,19301.0,0.35106867]
[1664644384959,0.81173144,19303.0,19301.0,0.35106867]
[1664644385186,1.13382408,19303.0,19301.0,0.35106867]
[1664644385400,0.94115444,19303.0,19302.0,0.357882]
[1664644385836,0.94115444,19303.0,19301.0,0.35106867]
[1664644386106,1.84776344,19303.0,19301.0,0.35106867]
[1664644386312,1.84776344,19303.0,19302.0,0.357882]
[1664644386530,2.03253978,19303.0,19301.0,0.35106867]
[1664644386746,1.92676344,19303.0,19302.0,0.357882]
[1664644386958,1.92676344,19303.0,19301.0,0.35106867]
[1664644387197,1.27927744,19303.0,19302.0,0.357882]
[1664644387414,0.97927744,19303.0,19301.0,0.35106867]
[1664644387856,0.90027744,19303.0,19301.0,0.35106867]
[1664644388300,0.90027744,19303.0,19302.0,0.163282]
[1664644388763,1.27927744,19303.0,19302.0,0.163282]
[1664644389245,1.27927744,19303.0,19302.0,0.521164]
[1664644389246,0.97927744,19303.0,19302.0,0.521164]
[1664644389898,0.90027744,19303.0,19302.0,0.521164]
[1664644390388,0.90027744,19303.0,19302.0,0.163282]
[1664644390606,0.97927744,19303.0,19302.0,0.163282]
[1664644390814,0.97927744,19303.0,19302.0,0.521164]
[1664644391489,0.079,19303.0,19302.0,0.521164]
[1664644391941,0.388528,19304.0,19302.0,0.521164]
[1664644392160,0.90025944,19304.0,19302.0,0.163282]
[1664644392461,0.90025944,19304.0,19302.0,0.422483]
[1664644392678,0.97925944,19304.0,19302.0,0.422483]
[1664644392891,0.97926144,19304.0,19302.0,0.422483]
[1664644393840,0.079,19304.0,19303.0,0.33963277]
[1664644394059,0.00011791,19303.0,19302.0,0.552002]
[1664644394285,0.00011791,19303.0,19302.0,0.422483]
[1664644394504,0.00011791,19303.0,19302.0,0.650764]
[1664644394718,0.07911791,19303.0,19302.0,0.650764]
[1664644395406,0.07911791,19303.0,19302.0,0.292882]
[1664644395648,0.07911791,19303.0,19302.0,0.650764]
[1664644395871,0.07911791,19303.0,19302.0,0.292882]
[1664644396105,0.00011791,19303.0,19302.0,0.292882]
[1664644396846,0.07911791,19303.0,19302.0,0.292882]
[1664644397071,0.07911791,19303.0,19302.0,0.650764]
[1664644397297,0.07911791,19303.0,19302.0,0.292882]
[1664644397528,0.07911791,19303.0,19302.0,0.650764]
[1664644397730,0.07911791,19303.0,19302.0,0.292882]
[1664644397965,0.07911791,19303.0,19302.0,0.650764]
[1664644398416,0.00011791,19303.0,19302.0,0.292882]
[1664644398628,0.00011791,19303.0,19302.0,0.650764]
[1664644398852,0.07911791,19303.0,19302.0,0.650764]
[1664644399300,0.07911791,19303.0,19302.0,0.292882]
[1664644399751,0.07911791,19303.0,19302.0,0.650764]
[1664644400264,0.00011791,19303.0,19302.0,0.650764]
[1664644400479,0.00011791,19303.0,19302.0,0.292882]
[1664644400697,0.07911791,19303.0,19302.0,0.650764]
[1664644401953,0.00011791,19303.0,19302.0,0.650764]
[1664644402390,0.00011791,19303.0,19302.0,0.292882]
[1664644402602,0.07911791,19303.0,19302.0,0.650764]
[1664644403037,0.07911791,19303.0,19302.0,0.292882]
[1664644403889,0.00011791,19303.0,19302.0,0.650764]
[1664644404535,0.00011791,19303.0,19302.0,0.292882]
[1664644404740,0.07911791,19303.0,19302.0,0.292882]
[1664644406028,0.00011791,19303.0,19302.0,0.292882]
[1664644406672,0.07911791,19303.0,19302.0,0.292882]
[1664644407621,0.81460225,19303.0,19302.0,0.163282]
[1664644407901,0.30011791,19303.0,19302.0,0.163282]
[1664644408116,0.68865791,19303.0,19302.0,0.163282]
[1664644408328,1.20671191,19303.0,19302.0,0.163282]
[1664644408750,1.28571191,19303.0,19302.0,0.163282]
[1664644409897,1.20671191,19303.0,19302.0,0.163282]
[1664644410341,0.90671191,19303.0,19302.0,0.163282]
[1664644410561,1.20671191,19303.0,19302.0,0.163282]
[1664644410786,1.28571191,19303.0,19302.0,0.163282]
[1664644411926,1.20671191,19303.0,19302.0,0.163282]
[1664644412784,1.28571191,19303.0,19302.0,0.163282]
[1664644413628,1.66331425,19303.0,19302.0,0.163282]
[1664644413877,1.28571191,19303.0,19302.0,0.163282]
[1664644414202,1.20671191,19303.0,19302.0,0.163282]
[1664644414792,1.28571191,19303.0,19302.0,0.444878]
[1664644415016,1.79744335,19303.0,19302.0,0.444878]
[1664644415476,2.21566654,19303.0,19302.0,0.444878]
[1664644416094,1.7590642,19303.0,19302.0,0.444878]
[1664644416766,1.8380642,19303.0,19302.0,0.444878]
[1664644417235,1.79744335,19303.0,19302.0,0.444878]
[1664644418135,1.71844335,19303.0,19302.0,0.444878]
[1664644418809,1.79744335,19303.0,19302.0,0.444878]
[1664644419953,1.71844335,19303.0,19302.0,0.444878]
[1664644420549,2.09604569,19303.0,19302.0,0.444878]
[1664644420795,2.17504569,19303.0,19302.0,0.444878]
[1664644421151,1.79744335,19303.0,19302.0,0.444878]
[1664644422052,2.09604569,19303.0,19302.0,0.444878]
[1664644422293,1.71844335,19303.0,19302.0,0.444878]
[1664644422730,1.79744335,19303.0,19302.0,0.444878]
[1664644424062,1.71844335,19303.0,19302.0,0.444878]
[1664644426409,2.3230698,19303.0,19302.0,0.444878]
[1664644426624,2.42462193,19303.0,19302.0,0.444878]
[1664644426903,2.06673993,19303.0,19302.0,0.444878]
[1664644428075,2.10736079,19303.0,19302.0,0.444878]
[1664644428297,2.02611908,19303.0,19302.0,0.444878]
[1664644428913,2.06674637,19303.0,19302.0,0.444878]